fUSD/lending_fUSD_20241123
["ID","MTS","AMOUNT","RATE_DAILY","PERIOD"]
[343096643,1732351838477,-7561.90814978,0.000586,120]
[343096644,1732351838488,-3999.09185022,0.000586,120]
[343096645,1732351838498,-108.35927295,0.00058655,2]
[343096646,1732351838527,-500.0,0.00056423,2]
[343096647,1732351838537,-23791.64072705,0.00058655,2]
[343096649,1732351838547,-4293.20962039,0.00058755,2]
[343096650,1732351838556,-250.0,0.00058782,120]
[343096651,1732351838566,-161.35,0.00058811,120]
[343096652,1732351838575,-150.0,0.00058828,2]
[343096653,1732351838739,-403.30489315,0.00058889,2]
[343096655,1732351838748,-500.0,0.00058945,30]
[343096656,1732351838758,-1000.0,0.0005898,120]
[343096657,1732351838768,-1000.0,0.00059055,120]
[343096658,1732351838777,-2028.08,0.00059074,2]
[343096659,1732351838787,-11561.0,0.000593,120]
[343096660,1732351838796,-842.72,0.00059335,2]
[343096661,1732351838805,-3482.10850195,0.00059428,15]
[343096662,1732351838819,-409.36,0.00059508,30]
[343096663,1732351838828,-10645.21136352,0.00059518,2]
[343096664,1732351838838,-500.0,0.00059529,120]
[343096665,1732351838847,-2023.1811,0.000599,2]
[343096666,1732351838856,-1622.22586391,0.000599,15]
[343096667,1732351838866,-86694.5557,0.000599,2]
[343096668,1732351838875,-29815.0,0.0006,120]
[343096669,1732351838884,-25440.48899902,0.0006,120]
[343096670,1732351838894,-156.69,0.00060274,120]
[343096671,1732351838903,-500.0,0.00060311,120]
[343096672,1732351838912,-181.49625,0.0006061,120]
[343096673,1732351838921,-500.0,0.00060716,120]
[343096674,1732351838930,-1780.0,0.00060766,30]
[343096675,1732351838943,-500.0,0.00060946,120]
[343096676,1732351838952,-500.0,0.00060953,120]
[343096677,1732351838961,-200.0,0.00061069,120]
[343096678,1732351838970,-158.75,0.00061283,120]
[343096679,1732351838979,-150.51,0.00061285,120]
[343096680,1732351838988,-3482.10850192,0.00061468,15]
[343096681,1732351838997,-200.0,0.00061484,30]
[343096682,1732351839006,-196.0,0.00061576,60]
[343096683,1732351839014,-1000.0,0.00061597,120]
[343096684,1732351839023,-842.72,0.00061599,2]
[343096685,1732351839033,-664.43,0.0006167,30]
[343096686,1732351839042,-174.18,0.0006168,2]
[343096687,1732351839051,-500.0,0.000617,22]
[343096688,1732351839060,-300.0,0.000617,22]
[343096689,1732351839070,-250.0,0.00061784,120]
[343096690,1732351839079,-1000.0,0.000618,22]
[343096691,1732351839088,-600.0,0.000618,22]
[343096692,1732351839098,-500.0,0.00061813,120]
[343096693,1732351839107,-174.18,0.00061834,2]
[343096694,1732351839116,-1622.22586386,0.00061887,15]
[343096695,1732351839125,-500.0,0.000619,2]
[343096696,1732351839134,-1500.0,0.000619,22]
[343096697,1732351839143,-1000.0,0.000619,2]
[343096698,1732351839153,-2500.0,0.000619,2]
[343096699,1732351839162,-11621.77452483,0.000619,2]
[343096700,1732351839171,-900.0,0.000619,22]
[343096701,1732351839180,-422.8687785,0.00061914,33]
[343096702,1732351839191,-168.38,0.00061926,120]
[343096703,1732351839200,-276.14,0.00061962,2]
[343096704,1732351839210,-503.00563323,0.00061973,12]
[343096705,1732351839220,-500.0,0.00061973,2]
[343096706,1732351839229,-174.18,0.00061989,2]
[343096707,1732351839239,-151.87,0.0006199,120]
[343096708,1732351839248,-151.87,0.0006199,120]
[343096709,1732351839257,-151.87,0.0006199,120]
[343096710,1732351839266,-151.87,0.0006199,120]
[343096711,1732351839276,-451.28438146,0.00061999,120]
[343096712,1732351839285,-727402.35323746,0.00062,51]
[343096713,1732351839349,150.0,0.00027,120]
[343096714,1732351839580,199.66489159,0.000323,120]
[343096715,1732351839606,48.33055841,0.000323,120]
[343096734,1732351839940,-182.20764672,0.0005672,2]
[343096739,1732351839971,-317.79235328,0.0005672,2]
[343096741,1732351839980,-1083.82385142,0.00062,51]
[343096747,1732351840029,-1810.02635273,0.00062,51]
[343096749,1732351840040,-2525.57672938,0.00062,51]
[343096752,1732351840055,-3386.08372478,0.00062,51]
[343096756,1732351840091,-385.87499972,0.00062,51]
[343096763,1732351840151,-410.4575,0.00062,51]
[343096770,1732351840210,-497.79490879,0.00062,51]
[343096772,1732351840221,-1369.0,0.00062,51]
[343096775,1732351840233,-1009.71667059,0.00062,51]
[343096823,1732351843086,-4002.3379599,0.00052827,120]
[343096824,1732351843098,-489.18296135,0.00052827,120]
[343096825,1732351843109,-362.76485203,0.00052827,120]
[343096826,1732351843202,-1292.5,0.00052827,120]
[343096827,1732351843214,-1684.75,0.00052827,120]
[343096828,1732351843226,-2168.46422672,0.00052827,120]
[343096829,1732351843234,-324.98,0.0006199,30]
[343096830,1732351843243,-3177.53187147,0.00062,51]
[343096831,1732351843258,-11783.40045222,0.00062,51]
[343096832,1732351843365,-54247.68138402,0.00062,51]
[343096833,1732351843392,-1606.99905118,0.00062,51]
[343096834,1732351843402,-2628.94114038,0.00062,51]
[343096835,1732351843414,-2724.65131651,0.00062,51]
[343096836,1732351843435,-6933.86049092,0.00062,51]
[343096837,1732351843449,-981.48,0.00062,51]
[343096838,1732351843460,-21562.99934298,0.00062,51]
[343096839,1732351843470,-64029.08668085,0.00062,51]
[343096840,1732351843481,-21132.0,0.00062,51]
[343096841,1732351843492,-3437.65884619,0.00062,51]
[343096842,1732351843503,-3698.92608116,0.00062,51]
[343096843,1732351843525,-1067.6047624,0.00062,51]
[343096844,1732351843536,-991.31969553,0.00062,51]
[343096858,1732351846098,-14330.58538106,0.00062,51]
[343096860,1732351846109,-348.547565,0.00062,51]
[343096864,1732351846139,-2699.80418807,0.00062,51]
[343096865,1732351846151,-3118.69337497,0.00062,51]
[343096866,1732351846162,-15609.038983,0.00062,51]
[343096867,1732351846172,-1694.115,0.00062,51]
[343096868,1732351846183,-959.66047797,0.00062,51]
[343096869,1732351846194,-301.62750913,0.00062,51]
[343096870,1732351846207,-2345.91538688,0.00062,51]
[343096871,1732351846235,-500.0,0.00052727,2]
[343096872,1732351846244,-721.08904497,0.00062,51]
[343096873,1732351846255,-278.8266,0.00062,51]
[343096874,1732351846267,-321.48339797,0.00062,51]
[343096875,1732351846279,-821.0475,0.00062,51]
[343096876,1732351846376,-10161.64890704,0.00062,51]
[343096877,1732351846387,-14258.89913316,0.00062,51]
[343096878,1732351846437,-3455.25470274,0.00062,51]
[343096879,1732351874134,271.0971,0.00039888,7]
[343096880,1732351890327,1124.0,0.000252,2]
[343096881,1732351890783,1012.0,0.000252,2]
[343096882,1732352012052,500.0,0.00024932,2]
[343096883,1732352012493,500.0,0.00024932,2]
[343096884,1732352013186,500.0,0.00024932,2]
[343096885,1732352013312,500.0,0.00024932,2]
[343096886,1732352021283,200.0,0.00024658,2]
[343096887,1732352021665,200.0,0.00024658,2]
[343096888,1732352022194,200.0,0.00024658,2]
[343096889,1732352084050,150.0,0.000432,30]
[343096890,1732352084076,3230.07,0.000432,30]
[343096891,1732352175876,164.16203641,0.00041096,2]
[343096892,1732352214803,151.0,0.000433,9]
[343096893,1732352325768,165.48,0.00036166,2]
[343096894,1732352353527,224.07,0.00041096,2]
[343096895,1732352409799,-1239.40714769,0.00043362,2]
[343096896,1732352409828,-270.30552383,0.00043562,120]
[343096897,1732352409855,-1082.745,0.00043562,68]
[343096898,1732352409881,-176.823,0.00043562,68]
[343096899,1732352410071,-224.07,0.00046143,2]
[343096900,1732352410105,-157.27020668,0.000495,120]
[343096901,1732352410132,-1100.0,0.00049999,9]
[343096902,1732352410157,-1255.0,0.00049999,9]
[343096903,1732352410186,-9240.0,0.0005,2]
[343096904,1732352410212,-4619.0,0.0005,2]
[343096905,1732352410238,-4619.0,0.0005,2]
[343096906,1732352410264,-4619.0,0.0005,2]
[343096907,1732352410290,-4619.0,0.0005,2]
[343096908,1732352410317,-5058.0,0.000502,10]
[343096909,1732352410344,-224.07,0.0005119,2]
[343096910,1732352410371,-150.0,0.00052227,2]
[343096911,1732352410397,-11636.43978869,0.00052729,2]
[343096912,1732352410424,-500.0,0.00054795,120]
[343096913,1732352410451,-500.0,0.00054795,120]
[343096914,1732352410477,-742.0,0.00054795,120]
[343096915,1732352410503,-150.56,0.00054974,120]
[343096916,1732352410530,-1025.03,0.00055771,2]
[343096917,1732352410556,-1697.0,0.00056,120]
[343096918,1732352411420,31772.4109551,0.00043362,2]
[343096919,1732352412458,734.0,0.00054795,120]
[343096920,1732352431115,200.0,0.00041096,2]
[343096921,1732352431150,63.58,0.00041096,2]
[343096922,1732352552978,-2865.57270069,0.0004544,2]
[343096923,1732352553005,-163.63,0.00045505,2]
[343096924,1732352553050,-666.477,0.0004554,120]
[343096925,1732352553080,-2865.57270067,0.00045615,2]
[343096926,1732352553110,-2865.57270067,0.0004579,2]
[343096927,1732352553140,-153.0,0.0004589,2]
[343096928,1732352553170,-205.78328695,0.0004589,2]
[343096929,1732352553199,-263.58,0.0004589,2]
[343096930,1732352553228,-263.58,0.00050685,2]
[343096931,1732352553257,-263.58,0.00055479,2]
[343096932,1732352553288,-157.35764051,0.00056,120]
[343096933,1732352553317,-224.07,0.00056237,120]
[343096934,1732352553346,-250.0,0.00056274,120]
[343096935,1732352553376,-550.07,0.00056958,2]
[343096936,1732352553404,-1047.7,0.0005699,2]
[343096937,1732352553433,-250.0,0.00057053,120]
[343096938,1732352553461,-230.54,0.00057297,2]
[343096939,1732352553492,-2500.0,0.00057344,2]
[343096940,1732352553521,-268.99,0.00057371,4]
[343096941,1732352553553,-4696.50311745,0.00057393,15]
[343096942,1732352553585,-2260.73950979,0.00057393,15]
[343096943,1732352553616,-268.24142223,0.00057393,120]
[343096944,1732352553647,-1279.16,0.00057432,30]
[343096945,1732352553678,-8818.81,0.00057432,30]
[343096946,1732352553708,-752.28,0.00057434,30]
[343096947,1732352553737,-872.64,0.00057434,30]
[343096948,1732352553765,-188.92539833,0.00057442,12]
[343096949,1732352554008,-137286.0,0.00057444,30]
[343096950,1732352554047,-324.21,0.00057493,2]
[343096951,1732352612128,500.0,0.00024932,2]
[343096952,1732352639504,-5980.0,0.00052438,7]
[343096953,1732352639531,-150.0,0.00052738,9]
[343096954,1732352639558,-966.21,0.00057044,7]
[343096955,1732352639803,-1624.8485,0.00057344,2]
[343096956,1732352639831,-1000.0,0.00057443,30]
[343096957,1732352639858,-164.69,0.00057503,2]
[343096958,1732352639885,-364.627011,0.00057508,120]
[343096959,1732352639911,-174.15,0.00057609,2]
[343096960,1732352639937,-172.83,0.00057659,2]
[343096961,1732352639963,-12819.88,0.00057735,7]
[343096962,1732352639993,-174.15,0.00057754,2]
[343096963,1732352640021,-174.15,0.00057898,2]
[343096964,1732352640049,-1025.03,0.00058035,2]
[343096965,1732352640074,-200.0,0.00058168,2]
[343096966,1732352640099,-23900.0,0.00058168,2]
[343096967,1732352640126,-9999.99,0.00058168,2]
[343096968,1732352640154,-178.82761482,0.00058201,120]
[343096969,1732352640180,-1000.0,0.00058301,30]
[343096970,1732352640206,-180.01679222,0.00058301,120]
[343096971,1732352640232,-500.0,0.00058301,120]
[343096972,1732352640258,-403.7731111,0.00058301,120]
[343096973,1732352640284,-1000.0,0.00058302,120]
[343096974,1732352640309,-944.24,0.00058302,2]
[343096975,1732352640334,-10930.74,0.00058302,45]
[343096976,1732352640361,-5236.17,0.00058302,2]
[343096977,1732352640387,-150.99,0.00058302,2]
[343096978,1732352640413,-1891.32,0.00058302,20]
[343096979,1732352640439,-706.6,0.00058302,10]
[343096980,1732352640465,-150.99,0.00058302,30]
[343096981,1732352640490,-1104.45,0.00058302,2]
[343096982,1732352640515,-999.99,0.00058302,10]
[343096983,1732352640542,-9999.99,0.00058302,2]
[343096984,1732352640572,-771.46,0.00058452,120]
[343096985,1732352640599,-4370.52,0.00058452,63]
[343096986,1732352640633,-178.82761481,0.00058478,120]
[343096987,1732352640660,-200.0,0.00058527,30]
[343096988,1732352640687,-160.28,0.00058672,120]
[343096989,1732352640714,-178.82761481,0.00058755,120]
[343096990,1732352640741,-19148.2384,0.00058755,2]
[343096991,1732352640770,-80723.19334124,0.00058855,2]
[343096992,1732352653253,-1076.25605495,0.00052737,30]
[343096993,1732352653280,-19276.80665876,0.00058855,2]
[343096994,1732352653308,-668.4291,0.00058855,2]
[343096995,1732352653334,-196.45,0.00058911,120]
[343096996,1732352653362,-178782.05818629,0.00058955,2]
[343097000,1732352847096,-1000.0,0.00057342,12]
[343097001,1732352847119,-367.29374752,0.00057344,2]
[343097002,1732352852137,-1891.98653806,0.00057344,2]
[343097003,1732352858628,-36759.28471442,0.00057344,2]
[343097004,1732352858659,-998.86,0.00057703,2]
[343097005,1732352858690,-700.0,0.000578,21]
[343097006,1732352858720,-1500.0,0.000579,21]
[343097007,1732352858749,-1000.0,0.00057999,30]
[343097008,1732352858776,-1000.0,0.00058068,2]
[343097009,1732352858808,-2500.0,0.00058068,2]
[343097010,1732352858836,-200.0,0.00058614,2]
[343097011,1732352858864,-200.43374611,0.0005866,10]
[343097012,1732352858891,-150.0,0.0005866,10]
[343097013,1732352858919,-1279.367526,0.0005866,14]
[343097014,1732352858946,-200.0,0.00058728,30]
[343097015,1732352858971,-150.99,0.00058728,2]
[343097016,1732352858996,-1000.0,0.00058954,30]
[343097017,1732352859023,-150.99,0.00058954,30]
[343097018,1732352859049,-22210.07401347,0.00058955,2]
[343097019,1732352870920,150.0,0.00031,2]
[343097020,1732352870948,100.0,0.00031,2]
[343097021,1732352871992,300.0,0.00033,2]
[343097022,1732352873078,350.0,0.00035,2]
[343097023,1732352874148,400.0,0.00037,2]
[343097024,1732352875238,450.0,0.00039,2]
[343097025,1732352876335,500.0,0.00041,2]
[343097026,1732352877399,550.0,0.00043,2]
[343097027,1732352878478,600.0,0.00045,2]
[343097028,1732352889559,-650.0,0.00047,2]
[343097029,1732352889590,-700.0,0.00049,2]
[343097030,1732352899068,-750.0,0.00051,2]
[343097031,1732352899101,-800.0,0.00053,2]
[343097032,1732352899128,-850.0,0.00055,2]
[343097033,1732352899156,-900.0,0.00057,2]
[343097034,1732352899183,-240.12,0.00058927,2]
[343097035,1732352899209,-1322.20910024,0.00058955,2]
[343097036,1732352899233,-400.66854171,0.00058955,30]
[343097037,1732352899259,-150.56,0.0005896,120]
[343097038,1732352899286,-950.0,0.00059,2]
[343097039,1732352899313,-2273.0,0.000592,90]
[343097040,1732352899343,-251.07481046,0.000594,2]
[343097041,1732352899369,-230.54,0.00059417,2]
[343097042,1732352899397,-500.0,0.00059738,2]
[343097043,1732352899425,-282.42,0.00059742,2]
[343097044,1732352899453,-804.18,0.00059743,2]
[343097045,1732352899482,-1441.5028,0.00059746,60]
[343097046,1732352899509,-8793.5674,0.00059746,2]
[343097047,1732352899537,-250.0,0.00059761,120]
[343097048,1732352899564,-556.47,0.0005978,2]
[343097049,1732352899592,-351.53,0.00059786,2]
[343097050,1732352899621,-151.77,0.0005979,120]
[343097051,1732352899648,-710.85946286,0.000598,120]
[343097052,1732352899683,-10030.5552,0.000598,2]
[343097053,1732352899718,-1000.0,0.000598,2]
[343097054,1732352899746,-8862.9484,0.000598,2]
[343097055,1732352899771,-6232.76,0.00059818,2]
[343097056,1732352899798,-185.46,0.00059826,2]
[343097057,1732352899825,-719.54,0.00059865,2]
[343097058,1732352899850,-248.0,0.00059904,2]
[343097059,1732352899874,-159.23595476,0.00059973,15]
[343097060,1732352899899,-4378.60682418,0.00059979,15]
[343097061,1732352899924,-162.89,0.00059999,30]
[343097062,1732352899949,-4045.0,0.0006,118]
[343097063,1732352899974,-150.62105629,0.0006,120]
[343097064,1732352899999,-1000.0,0.0006,120]
[343097065,1732352900025,-1000.0,0.0006,120]
[343097066,1732352900050,-5281.7813757,0.0006,120]
[343097067,1732352900077,-433582.1290738,0.0006,120]
[343097068,1732352904694,-315.83787382,0.00059979,2]
[343097069,1732352904724,-499684.16212618,0.0006,120]
[343097070,1732352908707,-500000.0,0.0006,120]
[343097071,1732352934342,-990.26,0.0005856,2]
[343097072,1732352934575,-12200.62862519,0.000599,120]
[343097073,1732352934604,-500.0,0.00059973,2]
[343097074,1732352934631,-51508.08341742,0.0006,120]
[343097075,1732352934657,-1000.0,0.00060079,120]
[343097076,1732352934683,-1082.745,0.00060171,120]
[343097077,1732352934711,-500.0,0.0006024,120]
[343097078,1732352934738,-263.58,0.00060274,2]
[343097079,1732352934764,-1000.0,0.00060521,2]
[343097080,1732352934792,-23900.0,0.00060533,2]
[343097081,1732352934819,-382.83,0.00060568,120]
[343097082,1732352934843,-165.46398531,0.00060572,28]
[343097083,1732352934870,-16963.9,0.00060653,2]
[343097084,1732352934894,-500.0,0.00060672,120]
[343097085,1732352934919,-990.26,0.00060824,2]
[343097086,1732352934944,-500.0,0.00060843,120]
[343097087,1732352934968,-500.0,0.00060897,120]
[343097088,1732352934994,-2300.0,0.000609,22]
[343097089,1732352935020,-1000.0,0.000609,30]
[343097090,1732352935044,-500.0,0.00060926,120]
[343097091,1732352935070,-2504.50697331,0.00060934,15]
[343097092,1732352935094,-30000.0,0.00061,120]
[343097093,1732352935122,-10000.0,0.00061,120]
[343097094,1732352935148,-1000.0,0.00061,2]
[343097095,1732352935174,-500.0,0.0006106,120]
[343097096,1732352935199,-264.07158274,0.00061175,120]
[343097097,1732352935224,-264.07158274,0.00061244,120]
[343097098,1732352935250,-224.07,0.00061283,120]
[343097099,1732352935275,-264.07158274,0.00061313,120]
[343097100,1732352935301,-264.07158274,0.00061381,120]
[343097101,1732352935327,-264.07158274,0.0006145,120]
[343097102,1732352935353,-264.07158274,0.00061519,120]
[343097103,1732352935379,-942.19435489,0.00061522,2]
[343097104,1732352935404,-230.54,0.00061537,2]
[343097105,1732352935429,-264.07158274,0.00061587,120]
[343097106,1732352935456,-264.07158274,0.00061656,120]
[343097107,1732352935482,-264.07158274,0.00061725,120]
[343097108,1732352935508,-315.83787373,0.00061771,2]
[343097109,1732352935534,-850.83088,0.0006179,105]
[343097110,1732352935559,-264.07158274,0.00061793,120]
[343097111,1732352935585,-850.83089,0.0006181,105]
[343097112,1732352935612,-264.07158274,0.00061862,120]
[343097113,1732352935638,-264.343566,0.00061875,120]
[343097114,1732352935665,-191.98863144,0.00061899,34]
[343097115,1732352935693,-508.3190042,0.000619,2]
[343097116,1732352935721,-170.06948319,0.000619,87]
[343097117,1732352935746,-174.03179946,0.000619,41]
[343097118,1732352935772,-166.1368494,0.000619,41]
[343097119,1732352935799,-3100.0,0.000619,22]
[343097120,1732352935825,-264.07158274,0.00061931,120]
[343097121,1732352935851,-4378.60682411,0.00061957,15]
[343097122,1732352935877,-850.83089,0.0006197,106]
[343097123,1732352935902,-500.0,0.00061973,15]
[343097124,1732352935927,-500.0,0.00061973,7]
[343097125,1732352935956,-151.77,0.0006199,120]
[343097126,1732352935982,-151.77,0.0006199,120]
[343097127,1732352936008,-151.77,0.0006199,120]
[343097128,1732352936033,-151.77,0.0006199,120]
[343097129,1732352936059,-151.77,0.0006199,120]
[343097130,1732352936084,-5000.0,0.00061996,120]
[343097131,1732352936111,-40445.54755916,0.00061997,120]
[343097132,1732352936135,-23055.36464055,0.00061997,120]
[343097133,1732352936161,-50807.50000198,0.00061997,120]
[343097134,1732352936187,-1000.0,0.00061999,30]
[343097135,1732352936213,-1000.0,0.00061999,30]
[343097136,1732352936239,-1000.0,0.00061999,30]
[343097137,1732352936265,-500.0,0.00061999,120]
[343097138,1732352936290,-500.0,0.00061999,120]
[343097139,1732352936316,-500.0,0.00061999,120]
[343097140,1732352936340,-500.0,0.00061999,120]
[343097141,1732352936365,-500.0,0.00061999,120]
[343097142,1732352936390,-500.0,0.00061999,120]
[343097143,1732352936416,-500.0,0.00061999,120]
[343097144,1732352936441,-500.0,0.00061999,120]
[343097145,1732352936468,-500.0,0.00061999,120]
[343097146,1732352936494,-500.0,0.00061999,120]
[343097147,1732352936520,-500.0,0.00061999,120]
[343097148,1732352936546,-500.0,0.00061999,120]
[343097149,1732352936572,-500.0,0.00061999,120]
[343097150,1732352936598,-500.0,0.00061999,120]
[343097151,1732352936626,-500.0,0.00061999,120]
[343097152,1732352936654,-500.0,0.00061999,120]
[343097153,1732352936682,-500.0,0.00061999,120]
[343097154,1732352936713,-500.0,0.00061999,120]
[343097155,1732352936739,-567.27838369,0.00061999,120]
[343097156,1732352936767,-1000.0,0.00061999,30]
[343097157,1732352936794,-264.07158274,0.00061999,120]
[343097158,1732352936823,-187961.63979135,0.00062,50]
[343097159,1732352937913,-168.38,0.00060783,120]
[343097160,1732352937939,-2500.0,0.000609,2]
[343097161,1732352937967,-154071.1692289,0.00062,50]
[343097162,1732352937994,-9921.2300168,0.00062,61]
[343097163,1732352938022,-333339.2207543,0.00062,120]
[343097164,1732352939157,-500000.0,0.00062,120]
[343097165,1732352941322,-500000.0,0.00062,120]
[343097166,1732352952337,-239738.4492457,0.00062,120]
[343097167,1732352952366,-151.0,0.00062,120]
[343097168,1732352952393,-151.0,0.00062,120]
[343097169,1732352952419,-151.0,0.00062,120]
[343097170,1732352952445,-391.255,0.00062,7]
[343097171,1732352952474,-151.0,0.00062,120]
[343097172,1732352952500,-391.255,0.00062,7]
[343097173,1732352952526,-151.0,0.00062,120]
[343097174,1732352952552,-151.0,0.00062,120]
[343097175,1732352952578,-318.868696,0.00062,120]
[343097176,1732352952604,-318.868696,0.00062,120]
[343097177,1732352952631,-151.503969,0.00062,120]
[343097178,1732352952657,-151.503969,0.00062,120]
[343097179,1732352952689,-151.0,0.00062,120]
[343097180,1732352952717,-151.0,0.00062,120]
[343097181,1732352952746,-151.0,0.00062,120]
[343097182,1732352952784,-151.0,0.00062,120]
[343097183,1732352952811,-151.0,0.00062,120]
[343097184,1732352952836,-151.0,0.00062,120]
[343097185,1732352952864,-151.0,0.00062,120]
[343097186,1732352952890,-628.300239,0.00062,120]
[343097187,1732352952916,-628.300239,0.00062,120]
[343097188,1732352952942,-151.0,0.00062,120]
[343097189,1732352952968,-247.235269,0.00062,120]
[343097190,1732352952994,-151.0,0.00062,120]
[343097191,1732352953020,-151.0,0.00062,120]
[343097192,1732352953046,-187.794479,0.00062,120]
[343097193,1732352953301,-187.794479,0.00062,120]
[343097194,1732352953329,-281.342922,0.00062,120]
[343097195,1732352953354,-2000.0,0.00062,30]
[343097196,1732352953381,-200.0,0.00062,30]
[343097197,1732352972092,-264.07158274,0.00062068,120]
[343097198,1732352999920,165.48,0.00041671,2]
[343097199,1732353004962,800.65370465,0.00062068,30]
[343097205,1732353032234,-10000.0,0.00052741,120]
[343097207,1732353032244,-1800.0,0.00052741,120]
[343097209,1732353032253,-8694.0,0.00052741,120]
[343097211,1732353032263,-1000.0,0.00052741,120]
[343097213,1732353032272,-1000.0,0.00052741,120]
[343097215,1732353032281,-1000.0,0.00052741,120]
[343097217,1732353032291,-1199.34629535,0.00062068,30]
[343097219,1732353032300,-200.0,0.00062068,30]
[343097221,1732353032309,-3000.0,0.00062068,106]
[343097223,1732353032318,-500.0,0.00062136,120]
[343097225,1732353032327,-264.07158274,0.00062137,120]
[343097227,1732353032337,-264.07158274,0.00062205,120]
[343097229,1732353032346,-165.73,0.00062248,2]
[343097231,1732353032355,-1000.0,0.0006227,120]
[343097232,1732353032363,-500.0,0.0006227,120]
[343097233,1732353032372,-500.0,0.0006227,120]
[343097234,1732353032381,-500.0,0.0006227,120]
[343097236,1732353032390,-500.0,0.0006227,120]
[343097238,1732353032400,-500.0,0.0006227,120]
[343097240,1732353032409,-500.0,0.0006227,120]
[343097242,1732353032419,-500.0,0.0006227,120]
[343097244,1732353032428,-500.0,0.0006227,120]
[343097246,1732353032438,-500.0,0.0006227,120]
[343097247,1732353032448,-500.0,0.0006227,120]
[343097248,1732353032457,-500.0,0.00062273,120]
[343097249,1732353032467,-264.07158274,0.00062274,120]
[343097250,1732353032477,-264.07158274,0.00062343,120]
[343097251,1732353032486,-258.09,0.0006235,30]
[343097252,1732353032496,-500.0,0.0006241,120]
[343097253,1732353032505,-264.07158274,0.00062411,120]
[343097254,1732353032515,-1000.0,0.00062453,120]
[343097255,1732353032525,-264.07158274,0.0006248,120]
[343097256,1732353032534,-153.69,0.00062492,2]
[343097257,1732353032544,-187.22739367,0.00062521,7]
[343097258,1732353032554,-500.0,0.00062547,120]
[343097259,1732353032563,-264.07158274,0.00062549,120]
[343097260,1732353032572,-301.42,0.0006257,60]
[343097261,1732353032582,-150.0,0.0006257,60]
[343097262,1732353032592,-150.0,0.00062571,60]
[343097263,1732353032602,-150.0,0.00062571,60]
[343097264,1732353032612,-433.75,0.00062571,60]
[343097265,1732353032621,-433.75,0.00062571,60]
[343097266,1732353032631,-150.0,0.00062571,60]
[343097267,1732353032640,-150.0,0.00062571,60]
[343097268,1732353032650,-433.75,0.00062571,60]
[343097269,1732353032659,-430.25,0.00062571,60]
[343097270,1732353032669,-150.0,0.00062571,60]
[343097271,1732353032680,-150.0,0.00062571,60]
[343097272,1732353032690,-150.0,0.00062571,60]
[343097273,1732353032700,-264.07158274,0.00062617,120]
[343097274,1732353032710,-2000.0,0.0006262,30]
[343097275,1732353032722,-200.0,0.0006262,30]
[343097276,1732353032732,-500.0,0.00062684,120]
[343097277,1732353032741,-264.07158274,0.00062686,120]
[343097278,1732353032751,-2000.0,0.00062689,30]
[343097279,1732353032762,-200.0,0.00062689,30]
[343097280,1732353032771,-519.0,0.000627,30]
[343097281,1732353032781,-366.0,0.000627,30]
[343097282,1732353032791,-264.07158274,0.00062755,120]
[343097283,1732353032801,-556.47,0.00062769,2]
[343097284,1732353032811,-500.0,0.00062771,120]